[Event "December 19 Early 2023"]
[Site "https://www.chess.com"]
[Date "2023.12.19"]
[Round "2"]
[White "Aswath, S"]
[Black "Hoffmann, Asa"]
[Result "1-0"]
[Board "158"]
[TimeControl "180+1"]
[WhiteFideId "46694919"]
[BlackFideId "2001470"]
[WhiteElo "2138"]
[BlackElo "2117"]
[WhiteTeam "IND"]
[BlackTeam "USA"]
[WhiteClock "0:00:06"]
[BlackClock "0:00:07"]

1. c4 {[%clk 0:03:00]}  Nf6 {[%clk 0:02:57]} 2. g3 {[%clk 0:03:00]}  d6 {[%clk 0:02:56]} 3. Bg2 {[%clk 0:03:00]}  c6 {[%clk 0:02:28]} 4. Nc3 {[%clk 0:02:58]}  e5 {[%clk 0:02:27]} 5. Nf3 {[%clk 0:02:54]}  Be6 {[%clk 0:02:27]} 6. d3 {[%clk 0:02:52]}  h6 {[%clk 0:02:27]} 7. O-O {[%clk 0:02:51]}  Qd7 {[%clk 0:02:27]} 8. b4 {[%clk 0:02:42]}  Be7 {[%clk 0:02:25]} 9. a4 {[%clk 0:02:38]}  Bh3 {[%clk 0:02:25]} 10. b5 {[%clk 0:02:35]}  Bxg2 {[%clk 0:02:24]} 11. Kxg2 {[%clk 0:02:36]}  O-O {[%clk 0:02:23]} 12. Rb1 {[%clk 0:02:33]}  Qe6 {[%clk 0:02:18]} 13. e4 {[%clk 0:02:28]}  d5 {[%clk 0:02:14]} 14. exd5 {[%clk 0:02:12]}  cxd5 {[%clk 0:02:13]} 15. Re1 {[%clk 0:02:12]}  Nbd7 {[%clk 0:02:10]} 16. Nd4 {[%clk 0:01:17]}  exd4 {[%clk 0:02:01]} 17. Rxe6 {[%clk 0:01:16]}  fxe6 {[%clk 0:02:01]} 18. Ne2 {[%clk 0:01:16]}  e5 {[%clk 0:01:58]} 19. cxd5 {[%clk 0:01:13]}  Nxd5 {[%clk 0:01:57]} 20. Qb3 {[%clk 0:01:13]}  Nf6 {[%clk 0:01:55]} 21. f4 {[%clk 0:01:12]}  exf4 {[%clk 0:01:50]} 22. Nxf4 {[%clk 0:01:13]}  Rfd8 {[%clk 0:01:49]} 23. Ne6 {[%clk 0:01:13]}  Rd7 {[%clk 0:01:46]} 24. Nxd4 {[%clk 0:01:07]}  Kh8 {[%clk 0:01:45]} 25. Bd2 {[%clk 0:01:04]}  Rad8 {[%clk 0:01:40]} 26. Ne6 {[%clk 0:01:03]}  Re8 {[%clk 0:01:34]} 27. Re1 {[%clk 0:00:56]}  Bd8 {[%clk 0:01:24]} 28. Nxd8 {[%clk 0:00:34]}  Rexd8 {[%clk 0:01:23]} 29. Bc1 {[%clk 0:00:19]}  Nb6 {[%clk 0:01:20]} 30. Re3 {[%clk 0:00:18]}  Nbd5 {[%clk 0:01:18]} 31. Rf3 {[%clk 0:00:18]}  Rc8 {[%clk 0:01:16]} 32. Bb2 {[%clk 0:00:18]}  Re7 {[%clk 0:01:11]} 33. Rf2 {[%clk 0:00:16]}  Ne3+ {[%clk 0:01:07]} 34. Kg1 {[%clk 0:00:16]}  Nfg4 {[%clk 0:01:07]} 35. Re2 {[%clk 0:00:16]}  Rce8 {[%clk 0:01:06]} 36. Qc3 {[%clk 0:00:14]}  Nf6 {[%clk 0:01:04]} 37. Ba3 {[%clk 0:00:12]}  Ned5 {[%clk 0:01:03]} 38. Rxe7 {[%clk 0:00:03]}  Nxc3 {[%clk 0:01:01]} 39. Rxb7 {[%clk 0:00:04]}  Ra8 {[%clk 0:00:55]} 40. Bb2 {[%clk 0:00:04]}  Nxa4 {[%clk 0:00:54]} 41. Bd4 {[%clk 0:00:04]}  Nd5 {[%clk 0:00:51]} 42. Rxg7 {[%clk 0:00:03]}  Nab6 {[%clk 0:00:39]} 43. Kg2 {[%clk 0:00:03]}  Nb4 {[%clk 0:00:25]} 44. Rxa7+ {[%clk 0:00:02]}  Kg8 {[%clk 0:00:23]} 45. Bxb6 {[%clk 0:00:02]}  Rxa7 {[%clk 0:00:22]} 46. Bxa7 {[%clk 0:00:03]}  Nxd3 {[%clk 0:00:22]} 47. Kf3 {[%clk 0:00:04]}  Ne5+ {[%clk 0:00:20]} 48. Ke4 {[%clk 0:00:03]}  Nd7 {[%clk 0:00:20]} 49. Kd5 {[%clk 0:00:04]}  Kf7 {[%clk 0:00:20]} 50. b6 {[%clk 0:00:04]}  Nxb6+ {[%clk 0:00:20]} 51. Bxb6 {[%clk 0:00:04]}  Kg6 {[%clk 0:00:20]} 52. Be3 {[%clk 0:00:05]}  h5 {[%clk 0:00:19]} 53. Ke4 {[%clk 0:00:06]}  h4 {[%clk 0:00:19]} 54. g4 {[%clk 0:00:06]}  h3 {[%clk 0:00:07]} 55. Kf4 {[%clk 0:00:06]} 1-0

[Event "December 19 Early 2023"]
[Site "https://www.chess.com"]
[Date "2023.12.19"]
[Round "2"]
[White "Bregu, Riza"]
[Black "Loutragotis, Dimitrios"]
[Result "0-1"]
[Board "160"]
[TimeControl "180+1"]
[WhiteFideId "4701739"]
[BlackFideId "4268458"]
[WhiteElo "2138"]
[BlackElo "2151"]
[WhiteTeam "ALB"]
[BlackTeam "GRE"]
[WhiteClock "0:01:09"]
[BlackClock "0:01:40"]

1. e4 {[%clk 0:03:00]}  e6 {[%clk 0:02:58]} 2. d4 {[%clk 0:03:01]}  d5 {[%clk 0:02:59]} 3. e5 {[%clk 0:03:01]}  c5 {[%clk 0:02:57]} 4. Qg4 {[%clk 0:03:02]}  cxd4 {[%clk 0:02:56]} 5. Nf3 {[%clk 0:03:02]}  Nc6 {[%clk 0:02:56]} 6. Bd3 {[%clk 0:03:02]}  h5 {[%clk 0:02:53]} 7. Qg3 {[%clk 0:03:02]}  Nh6 {[%clk 0:02:53]} 8. Bxh6 {[%clk 0:03:02]}  Rxh6 {[%clk 0:02:53]} 9. O-O {[%clk 0:03:03]}  g6 {[%clk 0:02:48]} 10. h4 {[%clk 0:03:03]}  Bg7 {[%clk 0:02:48]} 11. Re1 {[%clk 0:03:04]}  Rh8 {[%clk 0:02:45]} 12. Nbd2 {[%clk 0:03:04]}  Nb4 {[%clk 0:02:38]} 13. Nxd4 {[%clk 0:02:59]}  Nxd3 {[%clk 0:02:37]} 14. cxd3 {[%clk 0:03:00]}  Bd7 {[%clk 0:02:37]} 15. N4f3 {[%clk 0:02:59]}  Qb6 {[%clk 0:02:32]} 16. d4 {[%clk 0:02:59]}  Bf8 {[%clk 0:02:32]} 17. a3 {[%clk 0:02:58]}  Be7 {[%clk 0:02:31]} 18. Qf4 {[%clk 0:02:58]}  Kf8 {[%clk 0:02:30]} 19. Ng5 {[%clk 0:02:58]}  Bxg5 {[%clk 0:02:27]} 20. Qxg5 {[%clk 0:02:59]}  Qd8 {[%clk 0:02:24]} 21. Qf4 {[%clk 0:02:58]}  Kg7 {[%clk 0:02:24]} 22. Re3 {[%clk 0:02:57]}  Qe7 {[%clk 0:02:23]} 23. Rg3 {[%clk 0:02:57]}  Rac8 {[%clk 0:02:23]} 24. Nf3 {[%clk 0:02:19]}  Rc2 {[%clk 0:02:19]} 25. b4 {[%clk 0:02:20]}  Rhc8 {[%clk 0:02:15]} 26. Ng5 {[%clk 0:01:58]}  R8c3 {[%clk 0:02:15]} 27. Rxc3 {[%clk 0:01:56]}  Rxc3 {[%clk 0:02:16]} 28. Rc1 {[%clk 0:01:57]}  Rxc1+ {[%clk 0:02:05]} 29. Qxc1 {[%clk 0:01:57]}  Bc6 {[%clk 0:02:03]} 30. Qf4 {[%clk 0:01:51]}  Bb5 {[%clk 0:02:02]} 31. g4 {[%clk 0:01:50]}  hxg4 {[%clk 0:02:00]} 32. Qxg4 {[%clk 0:01:51]}  Qc7 {[%clk 0:01:56]} 33. h5 {[%clk 0:01:39]}  Qc1+ {[%clk 0:01:55]} 34. Kh2 {[%clk 0:01:39]}  Qd2 {[%clk 0:01:43]} 35. h6+ {[%clk 0:01:30]}  Kf8 {[%clk 0:01:43]} 36. Nh7+ {[%clk 0:01:21]}  Kg8 {[%clk 0:01:41]} 37. Nf6+ {[%clk 0:01:21]}  Kh8 {[%clk 0:01:41]} 38. Qh5 {[%clk 0:01:09]}  gxh5 {[%clk 0:01:40]} 0-1

[Event "December 19 Early 2023"]
[Site "https://www.chess.com"]
[Date "2023.12.19"]
[Round "2"]
[White "Davidson, Kevin"]
[Black "Bernat, David"]
[Result "1-0"]
[Board "164"]
[TimeControl "180+1"]
[WhiteFideId "2056810"]
[BlackFideId "2099225"]
[WhiteElo "2151"]
[BlackElo "1894"]
[WhiteTeam "USA"]
[BlackTeam "USA"]
[WhiteClock "0:01:33"]
[BlackClock "0:00:00"]

1. e4 {[%clk 0:03:00]}  c5 {[%clk 0:02:54]} 2. Nf3 {[%clk 0:03:00]}  g6 {[%clk 0:02:55]} 3. d4 {[%clk 0:03:00]}  cxd4 {[%clk 0:02:56]} 4. Qxd4 {[%clk 0:03:00]}  Nf6 {[%clk 0:02:56]} 5. e5 {[%clk 0:03:00]}  Nc6 {[%clk 0:02:56]} 6. Qa4 {[%clk 0:03:00]}  Nd5 {[%clk 0:02:56]} 7. Qe4 {[%clk 0:03:00]}  Nb6 {[%clk 0:02:57]} 8. Nc3 {[%clk 0:03:00]}  Bg7 {[%clk 0:02:57]} 9. Bf4 {[%clk 0:03:00]}  d5 {[%clk 0:02:58]} 10. exd6 {[%clk 0:02:59]}  Bf5 {[%clk 0:02:57]} 11. Qe3 {[%clk 0:02:59]}  O-O {[%clk 0:02:50]} 12. O-O-O {[%clk 0:02:59]}  exd6 {[%clk 0:02:36]} 13. Rxd6 {[%clk 0:03:00]}  Qc8 {[%clk 0:02:35]} 14. Bh6 {[%clk 0:02:59]}  Re8 {[%clk 0:02:24]} 15. Qd2 {[%clk 0:02:54]}  Bh8 {[%clk 0:01:27]} 16. Bb5 {[%clk 0:02:51]}  Qc7 {[%clk 0:00:35]} 17. Bf4 {[%clk 0:02:44]}  Qc8 {[%clk 0:00:16]} 18. Rd1 {[%clk 0:02:23]}  a6 {[%clk 0:00:15]} 19. Bf1 {[%clk 0:02:22]}  Nb4 {[%clk 0:00:12]} 20. Rxb6 {[%clk 0:02:12]}  Nxc2 {[%clk 0:00:06]} 21. Bd3 {[%clk 0:01:50]}  Rd8 {[%clk 0:00:01]} 22. Qxc2 {[%clk 0:01:48]}  Rxd3 {[%clk 0:00:01]} 23. Rxd3 {[%clk 0:01:45]}  Bxd3 {[%clk 0:00:02]} 24. Qxd3 {[%clk 0:01:45]}  Qc5 {[%clk 0:00:02]} 25. Rxb7 {[%clk 0:01:33]}  Rc8 {[%clk 0:00:00]} 26. Qd7 {[%clk 0:01:33]} 1-0

[Event "December 19 Early 2023"]
[Site "https://www.chess.com"]
[Date "2023.12.19"]
[Round "2"]
[White "Santos, Rafael Ventura Dos"]
[Black "Tikhonov, Viacheslav"]
[Result "1-0"]
[Board "166"]
[TimeControl "180+1"]
[WhiteFideId "2122227"]
[BlackFideId "44196407"]
[WhiteElo "2138"]
[BlackElo "2209"]
[WhiteTeam "BRA"]
[BlackTeam "RUS"]
[WhiteClock "0:01:09"]
[BlackClock "0:00:08"]

1. e4 {[%clk 0:03:00]}  c5 {[%clk 0:03:00]} 2. c4 {[%clk 0:03:00]}  Nc6 {[%clk 0:02:56]} 3. Ne2 {[%clk 0:03:00]}  g6 {[%clk 0:02:52]} 4. d4 {[%clk 0:03:00]}  cxd4 {[%clk 0:02:53]} 5. Nxd4 {[%clk 0:03:01]}  Nf6 {[%clk 0:02:54]} 6. Nc3 {[%clk 0:03:00]}  Nxd4 {[%clk 0:02:54]} 7. Qxd4 {[%clk 0:03:00]}  d6 {[%clk 0:02:55]} 8. f3 {[%clk 0:02:57]}  Bg7 {[%clk 0:02:55]} 9. Bg5 {[%clk 0:02:57]}  O-O {[%clk 0:02:55]} 10. Qd2 {[%clk 0:02:56]}  Be6 {[%clk 0:02:56]} 11. Rc1 {[%clk 0:02:56]}  Qa5 {[%clk 0:02:55]} 12. b3 {[%clk 0:02:56]}  Rfc8 {[%clk 0:02:55]} 13. g3 {[%clk 0:02:55]}  a6 {[%clk 0:02:52]} 14. Nd5 {[%clk 0:02:55]}  Qxd2+ {[%clk 0:02:47]} 15. Kxd2 {[%clk 0:02:56]}  Bxd5 {[%clk 0:02:31]} 16. cxd5 {[%clk 0:02:55]}  Rxc1 {[%clk 0:02:27]} 17. Kxc1 {[%clk 0:02:56]}  Rc8+ {[%clk 0:02:26]} 18. Kd2 {[%clk 0:02:56]}  e6 {[%clk 0:01:55]} 19. Bh3 {[%clk 0:02:49]}  Rc5 {[%clk 0:01:29]} 20. Bxf6 {[%clk 0:02:17]}  Bxf6 {[%clk 0:01:24]} 21. dxe6 {[%clk 0:02:17]}  Kf8 {[%clk 0:00:59]} 22. exf7 {[%clk 0:02:10]}  Kxf7 {[%clk 0:01:00]} 23. Rc1 {[%clk 0:02:07]}  Bg5+ {[%clk 0:00:43]} 24. f4 {[%clk 0:02:07]}  Rxc1 {[%clk 0:00:44]} 25. Kxc1 {[%clk 0:02:07]}  Bd8 {[%clk 0:00:39]} 26. Bc8 {[%clk 0:02:07]}  b5 {[%clk 0:00:18]} 27. Bxa6 {[%clk 0:02:06]}  b4 {[%clk 0:00:18]} 28. Kd2 {[%clk 0:02:00]}  Bb6 {[%clk 0:00:18]} 29. Ke2 {[%clk 0:01:55]}  Bg1 {[%clk 0:00:15]} 30. Bc4+ {[%clk 0:01:50]}  Ke7 {[%clk 0:00:15]} 31. Bg8 {[%clk 0:01:49]}  h6 {[%clk 0:00:12]} 32. Bh7 {[%clk 0:01:44]}  Kf7 {[%clk 0:00:09]} 33. f5 {[%clk 0:01:43]}  gxf5 {[%clk 0:00:10]} 34. exf5 {[%clk 0:01:39]}  Kf6 {[%clk 0:00:09]} 35. Kf1 {[%clk 0:01:35]}  Bc5 {[%clk 0:00:06]} 36. g4 {[%clk 0:01:33]}  d5 {[%clk 0:00:03]} 37. Ke2 {[%clk 0:01:30]}  Ke5 {[%clk 0:00:02]} 38. Bg8 {[%clk 0:01:22]}  Be7 {[%clk 0:00:03]} 39. Kf3 {[%clk 0:01:19]}  Bd8 {[%clk 0:00:03]} 40. Kg3 {[%clk 0:01:15]}  Be7 {[%clk 0:00:02]} 41. h4 {[%clk 0:01:15]}  Bd8 {[%clk 0:00:03]} 42. Be6 {[%clk 0:01:11]}  Be7 {[%clk 0:00:03]} 43. g5 {[%clk 0:01:12]}  hxg5 {[%clk 0:00:03]} 44. h5 {[%clk 0:01:13]}  d4 {[%clk 0:00:01]} 45. Kg4 {[%clk 0:01:09]}  Kf6 {[%clk 0:00:01]} 46. Bc4 {[%clk 0:01:10]}  Bf8 {[%clk 0:00:02]} 47. Bd3 {[%clk 0:01:09]}  Bh6 {[%clk 0:00:02]} 48. Be4 {[%clk 0:01:09]}  Bf8 {[%clk 0:00:03]} 49. Kf3 {[%clk 0:01:09]}  Bh6 {[%clk 0:00:04]} 50. Ke2 {[%clk 0:01:10]}  g4 {[%clk 0:00:03]} 51. Kd3 {[%clk 0:01:09]}  Be3 {[%clk 0:00:03]} 52. h6 {[%clk 0:01:08]}  Bf2 {[%clk 0:00:02]} 53. h7 {[%clk 0:01:08]}  Kg7 {[%clk 0:00:02]} 54. f6+ {[%clk 0:01:07]}  Kh8 {[%clk 0:00:02]} 55. f7 {[%clk 0:01:07]}  Kg7 {[%clk 0:00:03]} 56. f8=Q+ {[%clk 0:01:07]}  Kxf8 {[%clk 0:00:03]} 57. h8=Q+ {[%clk 0:01:07]}  Kf7 {[%clk 0:00:04]} 58. Qh5+ {[%clk 0:01:07]}  Ke6 {[%clk 0:00:04]} 59. Qf5+ {[%clk 0:01:07]}  Kd6 {[%clk 0:00:04]} 60. Qxf2 {[%clk 0:01:08]}  g3 {[%clk 0:00:04]} 61. Qxg3+ {[%clk 0:01:08]}  Kc5 {[%clk 0:00:05]} 62. Qe5+ {[%clk 0:01:09]}  Kb6 {[%clk 0:00:05]} 63. Bh1 {[%clk 0:01:09]}  Ka6 {[%clk 0:00:05]} 64. Bg2 {[%clk 0:01:08]}  Kb6 {[%clk 0:00:05]} 65. Bf1 {[%clk 0:01:09]}  Ka6 {[%clk 0:00:06]} 66. Qxd4 {[%clk 0:01:09]}  Kb7 {[%clk 0:00:06]} 67. Qxb4+ {[%clk 0:01:09]}  Ka6 {[%clk 0:00:06]} 68. Kc4 {[%clk 0:01:09]}  Ka7 {[%clk 0:00:07]} 69. Kc5 {[%clk 0:01:09]}  Ka8 {[%clk 0:00:08]} 70. Kc6 {[%clk 0:01:09]}  Ka7 {[%clk 0:00:08]} 71. Qb7# {[%clk 0:01:09]} 1-0

[Event "December 19 Early 2023"]
[Site "https://www.chess.com"]
[Date "2023.12.19"]
[Round "2"]
[White "Martinez Reyes, Pedro Ramon"]
[Black "Kostiukov, Alexandr"]
[Result "1-0"]
[Board "167"]
[TimeControl "180+1"]
[WhiteFideId "3901807"]
[BlackFideId "14108100"]
[WhiteElo "2327"]
[BlackElo "2112"]
[WhiteTeam "VEN"]
[BlackTeam "UKR"]
[WhiteClock "0:01:05"]
[BlackClock "0:00:46"]

1. Nf3 {[%clk 0:03:00]}  c5 {[%clk 0:02:59]} 2. g3 {[%clk 0:02:59]}  g6 {[%clk 0:02:59]} 3. Bg2 {[%clk 0:02:59]}  Bg7 {[%clk 0:03:00]} 4. O-O {[%clk 0:02:59]}  Nf6 {[%clk 0:03:00]} 5. d3 {[%clk 0:02:58]}  d5 {[%clk 0:02:59]} 6. Nbd2 {[%clk 0:02:58]}  O-O {[%clk 0:02:59]} 7. e4 {[%clk 0:02:58]}  Nc6 {[%clk 0:02:59]} 8. Re1 {[%clk 0:02:58]}  e5 {[%clk 0:02:58]} 9. exd5 {[%clk 0:02:55]}  Nxd5 {[%clk 0:02:58]} 10. c3 {[%clk 0:02:54]}  h6 {[%clk 0:02:57]} 11. Nc4 {[%clk 0:02:44]}  Re8 {[%clk 0:02:51]} 12. a4 {[%clk 0:02:40]}  Nb6 {[%clk 0:02:51]} 13. Be3 {[%clk 0:02:24]}  Bf5 {[%clk 0:02:15]} 14. Bxc5 {[%clk 0:02:16]}  Bxd3 {[%clk 0:02:13]} 15. Nd6 {[%clk 0:02:15]}  e4 {[%clk 0:02:09]} 16. Nxe8 {[%clk 0:01:58]}  Qxe8 {[%clk 0:01:48]} 17. Nd2 {[%clk 0:01:41]}  f5 {[%clk 0:01:46]} 18. Qb3+ {[%clk 0:01:28]}  Qf7 {[%clk 0:01:45]} 19. Qxf7+ {[%clk 0:01:19]}  Kxf7 {[%clk 0:01:46]} 20. f3 {[%clk 0:01:20]}  Re8 {[%clk 0:01:35]} 21. fxe4 {[%clk 0:01:20]}  fxe4 {[%clk 0:01:35]} 22. Nxe4 {[%clk 0:01:20]}  Nc4 {[%clk 0:01:26]} 23. Rad1 {[%clk 0:01:11]}  Nxb2 {[%clk 0:01:12]} 24. Rxd3 {[%clk 0:01:09]}  Nxd3 {[%clk 0:01:11]} 25. Nd6+ {[%clk 0:01:10]}  Kf6 {[%clk 0:00:46]} 26. Nxe8+ {[%clk 0:01:05]} 1-0

[Event "December 19 Early 2023"]
[Site "https://www.chess.com"]
[Date "2023.12.19"]
[Round "2"]
[White "Gruzman, Ilya"]
[Black "Devaev, Alexander"]
[Result "1-0"]
[Board "168"]
[TimeControl "180+1"]
[WhiteFideId "2812703"]
[BlackFideId "4169395"]
[WhiteElo "1986"]
[BlackElo "2172"]
[WhiteTeam "ISR"]
[BlackTeam "RUS"]
[WhiteClock "0:01:25"]
[BlackClock "0:01:18"]

1. d4 {[%clk 0:03:00]}  Nf6 {[%clk 0:02:59]} 2. c4 {[%clk 0:03:00]}  e6 {[%clk 0:02:58]} 3. Nf3 {[%clk 0:03:00]}  c5 {[%clk 0:02:59]} 4. d5 {[%clk 0:02:59]}  exd5 {[%clk 0:02:58]} 5. cxd5 {[%clk 0:03:00]}  d6 {[%clk 0:02:59]} 6. Nc3 {[%clk 0:03:00]}  g6 {[%clk 0:03:00]} 7. e4 {[%clk 0:03:00]}  Bg7 {[%clk 0:03:00]} 8. Be2 {[%clk 0:03:01]}  O-O {[%clk 0:03:01]} 9. O-O {[%clk 0:03:01]}  Na6 {[%clk 0:03:00]} 10. a4 {[%clk 0:03:00]}  Bg4 {[%clk 0:02:54]} 11. h3 {[%clk 0:03:00]}  Bxf3 {[%clk 0:02:54]} 12. Bxf3 {[%clk 0:03:00]}  Nb4 {[%clk 0:02:54]} 13. Bf4 {[%clk 0:03:00]}  a6 {[%clk 0:02:52]} 14. Re1 {[%clk 0:02:59]}  Ne8 {[%clk 0:02:48]} 15. Qd2 {[%clk 0:02:56]}  Qe7 {[%clk 0:02:48]} 16. Rad1 {[%clk 0:02:56]}  Rb8 {[%clk 0:02:45]} 17. Bh6 {[%clk 0:02:51]}  Bxh6 {[%clk 0:02:39]} 18. Qxh6 {[%clk 0:02:52]}  Nf6 {[%clk 0:02:35]} 19. Qf4 {[%clk 0:02:49]}  Nd7 {[%clk 0:02:34]} 20. Be2 {[%clk 0:02:46]}  Qe5 {[%clk 0:02:28]} 21. Qd2 {[%clk 0:02:45]}  g5 {[%clk 0:02:26]} 22. Bg4 {[%clk 0:02:42]}  Nf6 {[%clk 0:02:24]} 23. Bf5 {[%clk 0:02:43]}  Kg7 {[%clk 0:02:23]} 24. Qxg5+ {[%clk 0:02:42]}  Kh8 {[%clk 0:02:22]} 25. f4 {[%clk 0:02:43]}  Qe7 {[%clk 0:02:19]} 26. e5 {[%clk 0:02:31]}  dxe5 {[%clk 0:02:19]} 27. fxe5 {[%clk 0:02:31]}  Ng8 {[%clk 0:02:11]} 28. Qh5 {[%clk 0:02:13]}  h6 {[%clk 0:02:08]} 29. d6 {[%clk 0:02:09]}  Qe8 {[%clk 0:02:00]} 30. Nd5 {[%clk 0:02:05]}  Nxd5 {[%clk 0:01:52]} 31. Rxd5 {[%clk 0:02:05]}  c4 {[%clk 0:01:47]} 32. Rf1 {[%clk 0:01:31]}  Qxa4 {[%clk 0:01:31]} 33. Be4 {[%clk 0:01:26]}  c3 {[%clk 0:01:18]} 34. Qf5 {[%clk 0:01:25]} 1-0

[Event "December 19 Early 2023"]
[Site "https://www.chess.com"]
[Date "2023.12.19"]
[Round "2"]
[White "Iljin, Timofey"]
[Black "Koridze, Lile"]
[Result "1-0"]
[Board "169"]
[TimeControl "180+1"]
[WhiteFideId "14110180"]
[BlackFideId "13612514"]
[WhiteElo "2380"]
[BlackElo "2061"]
[WhiteTeam "UKR"]
[BlackTeam "GEO"]
[WhiteClock "0:00:05"]
[BlackClock "0:00:00"]

1. e4 {[%clk 0:03:00]}  c5 {[%clk 0:02:57]} 2. c3 {[%clk 0:03:01]}  Nf6 {[%clk 0:02:57]} 3. e5 {[%clk 0:03:00]}  Nd5 {[%clk 0:02:57]} 4. d4 {[%clk 0:03:01]}  cxd4 {[%clk 0:02:57]} 5. Nf3 {[%clk 0:03:01]}  e6 {[%clk 0:02:57]} 6. cxd4 {[%clk 0:03:02]}  d6 {[%clk 0:02:57]} 7. Bc4 {[%clk 0:03:00]}  Nb6 {[%clk 0:02:55]} 8. Bb3 {[%clk 0:03:00]}  Nc6 {[%clk 0:02:46]} 9. Qe2 {[%clk 0:02:58]}  dxe5 {[%clk 0:02:38]} 10. dxe5 {[%clk 0:02:59]}  Bb4+ {[%clk 0:02:37]} 11. Nc3 {[%clk 0:02:58]}  O-O {[%clk 0:02:31]} 12. O-O {[%clk 0:02:58]}  h6 {[%clk 0:02:30]} 13. Bc2 {[%clk 0:02:57]}  Nd4 {[%clk 0:02:01]} 14. Nxd4 {[%clk 0:02:55]}  Qxd4 {[%clk 0:02:01]} 15. Rd1 {[%clk 0:02:37]}  Qh4 {[%clk 0:02:00]} 16. Ne4 {[%clk 0:02:22]}  Nd5 {[%clk 0:01:31]} 17. g3 {[%clk 0:01:12]}  Qe7 {[%clk 0:01:25]} 18. Qd3 {[%clk 0:01:06]}  f5 {[%clk 0:01:16]} 19. exf6 {[%clk 0:01:06]}  Nxf6 {[%clk 0:01:16]} 20. Nxf6+ {[%clk 0:00:57]}  Rxf6 {[%clk 0:01:16]} 21. Qh7+ {[%clk 0:00:42]}  Kf7 {[%clk 0:01:16]} 22. Bd3 {[%clk 0:00:29]}  Bd7 {[%clk 0:01:15]} 23. Be2 {[%clk 0:00:29]}  Rg8 {[%clk 0:00:51]} 24. Bh5+ {[%clk 0:00:27]}  Kf8 {[%clk 0:00:52]} 25. Bf4 {[%clk 0:00:23]}  e5 {[%clk 0:00:46]} 26. Bxe5 {[%clk 0:00:19]}  Qxe5 {[%clk 0:00:44]} 27. Rxd7 {[%clk 0:00:19]}  Qxh5 {[%clk 0:00:43]} 28. Rd8+ {[%clk 0:00:18]}  Ke7 {[%clk 0:00:41]} 29. Qxg8 {[%clk 0:00:18]}  Rf7 {[%clk 0:00:32]} 30. Re1+ {[%clk 0:00:09]}  Bxe1 {[%clk 0:00:30]} 31. Qe8+ {[%clk 0:00:07]}  Kf6 {[%clk 0:00:31]} 32. Rd6+ {[%clk 0:00:08]}  Kg5 {[%clk 0:00:28]} 33. Qe3+ {[%clk 0:00:07]}  Kg4 {[%clk 0:00:24]} 34. Rd4+ {[%clk 0:00:05]}  Kf5 {[%clk 0:00:16]} 35. Qf4+ {[%clk 0:00:03]}  Kg6 {[%clk 0:00:16]} 36. Rd6+ {[%clk 0:00:03]}  Kh7 {[%clk 0:00:13]} 37. Qe4+ {[%clk 0:00:02]}  Qf5 {[%clk 0:00:13]} 38. Qxe1 {[%clk 0:00:03]}  b5 {[%clk 0:00:11]} 39. Rd2 {[%clk 0:00:03]}  a5 {[%clk 0:00:11]} 40. Qe3 {[%clk 0:00:02]}  a4 {[%clk 0:00:11]} 41. Qd3 {[%clk 0:00:02]}  Qxd3 {[%clk 0:00:10]} 42. Rxd3 {[%clk 0:00:03]}  Rc7 {[%clk 0:00:10]} 43. Rd5 {[%clk 0:00:03]}  b4 {[%clk 0:00:09]} 44. Rd4 {[%clk 0:00:03]}  a3 {[%clk 0:00:08]} 45. bxa3 {[%clk 0:00:04]}  bxa3 {[%clk 0:00:08]} 46. Rd3 {[%clk 0:00:04]}  Ra7 {[%clk 0:00:08]} 47. h4 {[%clk 0:00:02]}  Kg6 {[%clk 0:00:08]} 48. g4 {[%clk 0:00:03]}  Kf6 {[%clk 0:00:08]} 49. Kg2 {[%clk 0:00:03]}  Ke5 {[%clk 0:00:08]} 50. Kf3 {[%clk 0:00:04]}  Ra4 {[%clk 0:00:08]} 51. Kg3 {[%clk 0:00:03]}  Ke4 {[%clk 0:00:08]} 52. Rb3 {[%clk 0:00:03]}  Ke5 {[%clk 0:00:07]} 53. Rb7 {[%clk 0:00:03]}  g5 {[%clk 0:00:06]} 54. hxg5 {[%clk 0:00:02]}  hxg5 {[%clk 0:00:06]} 55. Rb6 {[%clk 0:00:03]}  Ra5 {[%clk 0:00:05]} 56. f3 {[%clk 0:00:02]}  Kd4 {[%clk 0:00:05]} 57. Rb3 {[%clk 0:00:02]}  Kc4 {[%clk 0:00:05]} 58. f4 {[%clk 0:00:03]}  gxf4+ {[%clk 0:00:04]} 59. Kxf4 {[%clk 0:00:03]}  Ra8 {[%clk 0:00:04]} 60. g5 {[%clk 0:00:04]}  Rf8+ {[%clk 0:00:03]} 61. Kg4 {[%clk 0:00:04]}  Rf2 {[%clk 0:00:02]} 62. Rxa3 {[%clk 0:00:04]}  Kb4 {[%clk 0:00:02]} 63. Ra8 {[%clk 0:00:04]}  Rg2+ {[%clk 0:00:02]} 64. Kh5 {[%clk 0:00:05]}  Kc5 {[%clk 0:00:02]} 65. Rd8 {[%clk 0:00:04]}  Rxa2 {[%clk 0:00:00]} 66. g6 {[%clk 0:00:05]} 1-0